lending/lending_fUSD_20240510
["ID","MTS","AMOUNT","RATE_DAILY","PERIOD"]
[326749223,1715299607993,6595.01,0.00022,30]
[326749229,1715299832191,-300.0,0.00017157,2]
[326749230,1715299832200,-1052.05964256,0.00017257,2]
[326749231,1715299832210,-485.68547373,0.00017258,2]
[326749232,1715299832219,-95.46867421,0.00017258,2]
[326749233,1715299832230,-54.53132579,0.00017258,2]
[326749234,1715299832239,-334.70530888,0.00017259,2]
[326749235,1715299832251,-642.48915098,0.00017259,2]
[326749236,1715299832260,-160.6591699,0.00017259,2]
[326749237,1715299832270,-512.21132008,0.00017259,2]
[326749238,1715299832279,-3083.43233643,0.00017259,2]
[326749239,1715299832288,-1000.0,0.00017259,2]
[326749240,1715299832297,-1540.650933,0.00019082,2]
[326749241,1715299832306,-153.62,0.00019178,2]
[326749242,1715299832315,-162.13,0.00019178,2]
[326749243,1715299832324,-4975.41,0.00019726,2]
[326749244,1715299832334,-499.99,0.00019726,2]
[326749245,1715299832342,-150.99,0.00019726,2]
[326749246,1715299832351,-155.0,0.0002,2]
[326749247,1715299832360,-156.33,0.00020088,2]
[326749248,1715299832369,-1782.0,0.000211,3]
[326749249,1715299832378,-9635.88228639,0.00022,2]
[326749252,1715299832392,-256.90979463,0.00022,2]
[326749254,1715299832403,-710.57160283,0.00022,2]
[326749257,1715299832422,-3306.5075762,0.00022,2]
[326749259,1715299832433,-293.43812873,0.00022,2]
[326749260,1715299832444,-1476.94465062,0.00022,2]
[326749262,1715299832454,-448.11288855,0.00022,2]
[326749265,1715299832493,-5830.8384,0.00022,2]
[326749272,1715299838082,-3572.60952,0.00022,2]
[326749273,1715299838094,-529.44334125,0.00022,2]
[326749274,1715299838106,-11376.86883705,0.00022,2]
[326749275,1715299838116,-595.2,0.00024988,2]
[326749276,1715299838126,-9141.6134401,0.00025336,2]
[326749277,1715299838136,-23900.0,0.00025337,2]
[326749278,1715299838146,-250.0,0.00025495,2]
[326749279,1715299838156,-250.0,0.00025495,2]
[326749280,1715299838166,-161.0,0.00025669,2]
[326749281,1715299838176,-1567.59,0.00025719,2]
[326749282,1715299838186,-250.0,0.00025725,2]
[326749283,1715299838196,-187.56,0.00026492,120]
[326749284,1715299838207,-160.18,0.00026679,2]
[326749285,1715299838218,-1500.0,0.000271,2]
[326749286,1715299838228,-153.35158189,0.00027135,2]
[326749287,1715299838238,-197.63,0.00027288,2]
[326749288,1715299838250,-300.0,0.00027397,2]
[326749289,1715299838259,-150.0,0.00027397,2]
[326749290,1715299838269,-595.2,0.00028112,2]
[326749291,1715299838278,-150.0,0.00028135,2]
[326749292,1715299838288,-215.53828734,0.000289,2]
[326749293,1715299838298,-773.9724,0.000289,2]
[326749294,1715299838308,-800.0,0.00028986,2]
[326749295,1715299838318,-592.18,0.00028988,10]
[326749296,1715299838328,-845.06,0.00028989,10]
[326749297,1715299838338,-157.50965258,0.00028998,2]
[326749298,1715299838348,-1600.52091922,0.00028998,2]
[326749299,1715299838358,-1243.56007584,0.00028998,2]
[326749300,1715299838368,-236.58098128,0.00028999,2]
[326749301,1715299838378,-186454.22731238,0.00029,2]
[326749303,1715299838387,-164.27008,0.00029,2]
[326749304,1715299838397,-150.0,0.00029135,2]
[326749305,1715299838407,-150.0,0.00029183,120]
[326749306,1715299838416,-199.99,0.00029242,2]
[326749307,1715299838426,-199.99,0.0002925,2]
[326749308,1715299838436,-199.99,0.00029257,2]
[326749310,1715299838446,-199.99,0.00029265,2]
[326749311,1715299838455,-199.99,0.00029273,2]
[326749312,1715299838465,-199.99,0.0002928,2]
[326749313,1715299838476,-199.99,0.00029288,2]
[326749314,1715299838485,-199.99,0.00029296,2]
[326749315,1715299838495,-199.99,0.00029304,2]
[326749316,1715299838506,-199.99,0.00029311,2]
[326749317,1715299838515,-199.99,0.00029319,2]
[326749318,1715299838525,-199.99,0.00029327,2]
[326749319,1715299838535,-199.99,0.00029334,2]
[326749320,1715299838544,-199.99,0.00029342,2]
[326749321,1715299838554,-199.99,0.0002935,2]
[326749322,1715299838564,-199.99,0.00029357,2]
[326749323,1715299838574,-199.99,0.00029365,2]
[326749324,1715299838583,-199.99,0.00029373,2]
[326749325,1715299838593,-199.99,0.0002938,2]
[326749326,1715299838603,-199.99,0.00029388,2]
[326749327,1715299838613,-150.0,0.000294,2]
[326749328,1715299838623,-157.051008,0.00029498,24]
[326749329,1715299838633,-912.31,0.00029666,2]
[326749330,1715299838643,-912.31,0.00029666,2]
[326749331,1715299838654,-153.62,0.00029888,2]
[326749332,1715299838664,-7500.0,0.00029897,2]
[326749333,1715299838677,-3000.0,0.000299,2]
[326749334,1715299838686,-165.70140732,0.000299,2]
[326749335,1715299838696,-3770.43840481,0.000299,2]
[326749336,1715299838706,-1500.0,0.000299,2]
[326749337,1715299838717,-151.71740717,0.000299,2]
[326749338,1715299838728,-365.3252245,0.000299,2]
[326749339,1715299838739,-157.7887689,0.000299,2]
[326749340,1715299838751,-169.65612967,0.000299,2]
[326749341,1715299838762,-151.0,0.00029948,2]
[326749342,1715299838772,-155.18,0.0002999,2]
[326749343,1715299838782,-155.18,0.0002999,2]
[326749344,1715299838792,-298.19,0.0002999,15]
[326749345,1715299838802,-155.18,0.0002999,2]
[326749346,1715299838812,-155.18,0.0002999,2]
[326749347,1715299838822,-155.18,0.0002999,2]
[326749348,1715299838832,-1805.46376282,0.00029994,2]
[326749349,1715299838841,-123732.85564798,0.00029997,2]
[326749350,1715299838859,-657.76259654,0.00029997,2]
[326749351,1715299838887,-1113.46114593,0.00029997,2]
[326749352,1715299838914,-586.32440019,0.00029997,2]
[326749353,1715299838925,-63100.0,0.00029997,2]
[326749354,1715299838941,-1464.1946,0.00029997,2]
[326749355,1715299838954,-6146.64666196,0.00029997,2]
[326749356,1715299838973,-3520.66396125,0.00029997,2]
[326749357,1715299838985,-1728.72368233,0.00029997,2]
[326749358,1715299838997,-15972.6000002,0.00029997,2]
[326749359,1715299839023,-443.83778674,0.00029997,2]
[326749362,1715299840189,-200.0,0.00028,2]
[326749363,1715299840199,-9800.0,0.00029997,2]
[326749364,1715299840249,-2253.32295675,0.00029997,2]
[326749365,1715299840261,-25352.17746557,0.00029997,2]
[326749366,1715299840272,-344.74389302,0.00029998,2]
[326749367,1715299840282,-364.38705348,0.00029998,2]
[326749368,1715299840293,-326.2172381,0.00029999,2]
[326749369,1715299840304,-9581.10293057,0.0003,15]
[326749370,1715299840317,-15383.4283066,0.0003,15]
[326749371,1715299840329,-9102.7803848,0.0003,15]
[326749372,1715299841679,-338.79383807,0.0003,15]
[326749374,1715299841692,-293.7,0.0003,15]
[326749375,1715299841705,-554.83480741,0.0003,15]
[326749376,1715299841717,-454.18508886,0.0003,15]
[326749377,1715299841740,-3128.125,0.0003,15]
[326749378,1715299841753,-494.33294771,0.0003,15]
[326749385,1715299843129,-597255.94639015,0.0003,15]
[326749386,1715299843190,-13968.97310162,0.0003,15]
[326749387,1715299843203,-3963.93614813,0.0003,15]
[326749388,1715299843252,-3799.31685262,0.0003,15]
[326749450,1715299846075,-302.07606783,0.00029999,2]
[326749451,1715299846085,-1371.09593223,0.0003,15]
[326749452,1715299846135,-386.34527195,0.0003,15]
[326749453,1715299846252,-36728.04919,0.0003,15]
[326749454,1715299846263,-29892.98815201,0.0003,15]
[326749455,1715299846274,-253.94151929,0.0003,15]
[326749456,1715299846285,-363.49361046,0.0003,15]
[326749457,1715299846366,-8193.69971358,0.0003,15]
[326749496,1715301032210,-162.39566202,0.00016828,2]
[326749498,1715301032220,-685.3229922,0.00016829,2]
[326749499,1715301032229,-155.0,0.00016829,2]
[326749500,1715301032238,-1271.11961003,0.00016829,2]
[326749501,1715301032247,-324.42510247,0.0001683,2]
[326749502,1715301032256,-155.0,0.00016831,2]
[326749503,1715301032265,-155.0,0.00016831,2]
[326749504,1715301032274,-116.73663328,0.00016832,2]
[326749505,1715301032286,-247.28260272,0.00016832,2]
[326749506,1715301032294,-336.05923484,0.00016917,2]
[326749507,1715301032305,-286.70244855,0.00016917,2]
[326749508,1715301032317,-324.42510247,0.00016919,2]
[326749509,1715301032328,-179.7499629,0.00016922,2]
[326749510,1715301032339,-14750.58975584,0.00016922,2]
[326749511,1715301032348,-5401.44,0.00017808,2]
[326749512,1715301032359,-6982.66,0.00017808,2]
[326749513,1715301032367,-299.99,0.00017808,4]
[326749514,1715301032377,-150.99,0.00019178,2]
[326749515,1715301032386,-170.57,0.00019178,2]
[326749516,1715301032396,-156.62,0.00019178,2]
[326749517,1715301032405,-499.99,0.00019726,2]
[326749518,1715301032415,-150.99,0.00019726,2]
[326749519,1715301032424,-169.13,0.00020354,2]
[326749520,1715301032434,-158.31,0.00020978,2]
[326749521,1715301032444,-568.0,0.000212,3]
[326749522,1715301032453,-2091.19734019,0.000219,3]
[326749523,1715301032462,-30520.39627377,0.00022,2]
[326749524,1715301032472,-17991.75386871,0.00022,2]
[326749525,1715301032481,-1500.0,0.000249,2]
[326749526,1715301032490,-250.0,0.00025126,2]
[326749527,1715301032499,-250.0,0.00025379,2]
[326749528,1715301032508,-46895.75,0.00025765,2]
[326749529,1715301032517,-157.35432051,0.00025813,2]
[326749530,1715301032529,-23900.0,0.00025878,2]
[326749531,1715301032538,-357.12,0.00025913,2]
[326749532,1715301032549,-250.0,0.0002606,2]
[326749533,1715301032558,-161.0,0.0002613,2]
[326749534,1715301032567,-1675.05,0.0002621,2]
[326749535,1715301032576,-157.66,0.00026426,2]
[326749536,1715301032585,-150.0,0.000267,5]
[326749537,1715301032595,-170.61,0.00026706,2]
[326749538,1715301032604,-197.63,0.00026839,2]
[326749539,1715301032613,-181.24,0.00027008,120]
[326749540,1715301032622,-157.66,0.00027115,2]
[326749541,1715301032631,-150.0,0.000272,5]
[326749542,1715301032640,-150.0,0.00027397,2]
[326749543,1715301032649,-160.18,0.00027541,2]
[326749544,1715301032659,-1500.0,0.000277,2]
[326749545,1715301032668,-150.0,0.000277,5]
[326749546,1715301032677,-157.66,0.00027803,2]
[326749547,1715301032687,-157.35432049,0.0002786,2]
[326749548,1715301032696,-150.0,0.000282,5]
[326749549,1715301032705,-150.0,0.000287,5]
[326749550,1715301032715,-357.12,0.00029152,2]
[326749551,1715301032725,-397.163047,0.000292,2]
[326749552,1715301032734,-150.0,0.000292,6]
[326749553,1715301032743,-3145.56436845,0.00029295,2]
[326749554,1715301032753,-150.0,0.000294,2]
[326749555,1715301032762,-414.85,0.00029671,2]
[326749556,1715301032771,-150.0,0.000297,6]
[326749557,1715301032781,-2091.19734018,0.000298,5]
[326749558,1715301032790,-1000.0,0.000298,2]
[326749559,1715301032799,-7500.0,0.000298,2]
[326749560,1715301032808,-2500.0,0.000298,2]
[326749561,1715301032818,-311.12422488,0.000298,2]
[326749562,1715301032827,-224.69293755,0.0002985,2]
[326749563,1715301032837,-3814.60373318,0.00029898,2]
[326749564,1715301032847,-1243.56007584,0.00029899,2]
[326749565,1715301032857,-245000.0,0.000299,2]
[326749566,1715301032866,-1000.0,0.000299,2]
[326749567,1715301032876,-500.0,0.000299,2]
[326749568,1715301032885,-39121.8037,0.000299,2]
[326749569,1715301032894,-15854.96688583,0.000299,2]
[326749570,1715301032906,-17494.74442795,0.000299,2]
[326749571,1715301032986,-704.62238723,0.000299,2]
[326749572,1715301032998,-1781.56229099,0.000299,2]
[326749573,1715301033009,-261.36402809,0.000299,2]
[326749574,1715301033033,-956.33828,0.000299,2]
[326749575,1715301033044,-1592.4647743,0.000299,2]
[326749576,1715301033056,-6481.68123966,0.000299,2]
[326749577,1715301033068,-1997.4276,0.000299,2]
[326749578,1715301033079,-1042.16772,0.000299,2]
[326749579,1715301033090,-1309.51,0.000299,2]
[326749581,1715301033102,-1486.7837916,0.000299,2]
[326749583,1715301033113,-647.77,0.000299,2]
[326749586,1715301033127,-404.0000001,0.000299,2]
[326749588,1715301033139,-326.34,0.000299,2]
[326749590,1715301033150,-420.0,0.000299,2]
[326749592,1715301033161,-522.67520343,0.000299,2]
[326749594,1715301033172,-5107.4353723,0.000299,2]
[326749597,1715301033183,-742.46813844,0.000299,2]
[326749599,1715301033198,-13125.53380091,0.000299,2]
[326749602,1715301033213,-768.59427376,0.000299,2]
[326749604,1715301033225,-9769.20453254,0.000299,2]
[326749607,1715301033243,-1151.14873559,0.000299,2]
[326749609,1715301033254,-2219.12942943,0.000299,2]
[326749611,1715301033265,-919.32000046,0.000299,2]
[326749612,1715301033276,-630.85,0.000299,2]
[326749613,1715301033291,-2808.88052821,0.000299,2]
[326749625,1715301038281,-155.0,0.00016827,2]
[326749626,1715301038290,-103.67387661,0.00027397,10]
[326749627,1715301038301,-600.54612339,0.00027397,10]
[326749628,1715301038311,-68.94242065,0.000299,2]
[326749629,1715301038325,-626.98810298,0.000299,2]
[326749630,1715301038404,-8777.08603555,0.000299,2]
[326749631,1715301038413,-162.47791248,0.000299,2]
[326749632,1715301038422,-4279.35596198,0.000299,2]
[326749633,1715301038431,-5012.16137656,0.000299,2]
[326749634,1715301038440,-208.74365107,0.000299,2]
[326749635,1715301038449,-431.94692196,0.000299,2]
[326749636,1715301038458,-2149.18633045,0.000299,2]
[326749637,1715301038467,-772.14928378,0.000299,2]
[326749638,1715301038476,-157.35432049,0.00029907,2]
[326749639,1715301038486,-151.0,0.00029948,2]
[326749640,1715301038495,-155.18,0.0002999,2]
[326749641,1715301038503,-155.18,0.0002999,2]
[326749642,1715301038513,-155.18,0.0002999,2]
[326749643,1715301038522,-405.3612315,0.00029998,2]
[326749644,1715301038530,-1052.05964256,0.00029998,2]
[326749645,1715301038539,-11446.0311833,0.00029998,2]
[326749646,1715301038550,-155.0,0.00029998,2]
[326749647,1715301038559,-642.48915098,0.00029998,2]
[326749648,1715301038568,-208.24431388,0.00029998,2]
[326749649,1715301038577,-2799.61973217,0.00029998,2]
[326749650,1715301038586,-265.84118452,0.00029998,2]
[326749651,1715301038595,-246.28896224,0.00029998,2]
[326749652,1715301038604,-155.0,0.00029998,2]
[326749654,1715301038613,-201.46040299,0.00029998,2]
[326749656,1715301038622,-178.22476073,0.00029998,2]
[326749658,1715301038631,-171.55389997,0.00029998,2]
[326749660,1715301038640,-194.65788438,0.00029998,2]
[326749662,1715301038649,-161.93161365,0.00029998,2]
[326749664,1715301038659,-155.34681504,0.00029998,2]
[326749666,1715301038668,-155.0,0.00029998,2]
[326749668,1715301038677,-309.00362942,0.00029998,2]
[326749670,1715301038686,-236.85399769,0.00029998,2]
[326749674,1715301038706,-196.89901937,0.00029998,2]
[326749676,1715301038715,-412.38419428,0.00029998,2]
[326749678,1715301038725,-186.08672998,0.00029998,2]
[326749680,1715301038734,-161.89273834,0.00029998,2]
[326749682,1715301038744,-285.32830911,0.00029998,2]
[326749684,1715301038754,-155.73438024,0.00029998,2]
[326749686,1715301038763,-271.32061224,0.00029998,2]
[326749689,1715301038773,-155.495243,0.00029998,2]
[326749691,1715301038782,-1564.94388957,0.00029998,2]
[326749693,1715301038791,-363.00604824,0.00029998,2]
[326749695,1715301038800,-590.72620326,0.00029998,2]
[326749697,1715301038809,-155.0,0.00029998,2]
[326749699,1715301038819,-155.23158584,0.00029998,2]
[326749701,1715301038828,-213.86157693,0.00029998,2]
[326749703,1715301038837,-155.0,0.00029998,2]
[326749705,1715301038847,-307.2716469,0.00029998,2]
[326749707,1715301038856,-155.80892173,0.00029998,2]
[326749709,1715301038865,-155.0,0.00029998,2]
[326749711,1715301038875,-155.0,0.00029998,120]
[326749713,1715301038884,-155.0,0.00029998,2]
[326749715,1715301038893,-172.631538,0.00029998,2]
[326749717,1715301038903,-194.01529019,0.00029998,2]
[326749719,1715301038912,-198.25178031,0.00029998,2]
[326749720,1715301038922,-201.00177238,0.00029998,2]
[326749721,1715301038932,-155.3754429,0.00029998,2]
[326749722,1715301038942,-155.0,0.00029998,2]
[326749723,1715301038952,-5537.91821291,0.00029998,2]
[326749724,1715301038962,-207.30284027,0.00029998,2]
[326749725,1715301038972,-155.79455194,0.00029998,2]
[326749726,1715301038983,-262.16181551,0.00029998,2]
[326749727,1715301038992,-190.79175926,0.00029998,2]
[326749728,1715301039002,-4407.35148608,0.00029998,2]
[326749729,1715301039012,-297.40880757,0.00029998,2]
[326749730,1715301039022,-233.03801742,0.00029998,2]
[326749731,1715301039032,-175.34807354,0.00029998,2]
[326749732,1715301039042,-157.95350061,0.00029998,2]
[326749733,1715301039051,-163.88340812,0.00029998,2]
[326749734,1715301039061,-181.34680429,0.00029998,2]
[326749735,1715301039071,-155.0,0.00029998,2]
[326749736,1715301039080,-155.0,0.00029998,2]
[326749737,1715301039091,-155.0,0.00029998,2]
[326749738,1715301039100,-232.20383082,0.00029998,2]
[326749739,1715301039110,-788.18220201,0.00029998,2]
[326749740,1715301039120,-317.50955943,0.00029998,2]
[326749741,1715301039130,-2552.76823455,0.00029999,2]
[326749742,1715301039140,-15376.15269774,0.00029999,2]
[326749743,1715301039149,-300.0,0.00029999,2]
[326749744,1715301039159,-164.27008,0.00029999,2]
[326749745,1715301039168,-286403.08434974,0.0003,15]
[326749746,1715301039182,-3008.00000006,0.0003,15]
[326749747,1715301039194,-1513.411717,0.0003,15]
[326749748,1715301039205,-744.77622331,0.0003,15]
[326749749,1715301039230,-496.0975875,0.0003,15]
[326749750,1715301039242,-756.06368882,0.0003,15]
[326749751,1715301039254,-1512.92844814,0.0003,15]
[326749752,1715301039266,-256.28637958,0.0003,15]
[326749753,1715301039278,-760.03642094,0.0003,15]
[326749754,1715301039291,-827.96052147,0.0003,15]
[326749755,1715301039309,-2165.91078074,0.0003,15]
[326749760,1715301041751,-3081.86292187,0.0003,15]
[326749761,1715301041763,-17634.91000001,0.0003,15]
[326749762,1715301041775,-710.2327131,0.0003,15]
[326749763,1715301041787,-736.19486199,0.0003,15]
[326749764,1715301041798,-677.02054854,0.0003,15]
[326749765,1715301041810,-613.57622821,0.0003,15]
[326749766,1715301041822,-321.155,0.0003,15]
[326749767,1715301041834,-10000.0,0.0003,15]
[326749768,1715301041846,-893.6378808,0.0003,15]
[326749769,1715301041857,-739.1303599,0.0003,15]
[326749770,1715301041868,-825.87878549,0.0003,15]
[326749790,1715301043447,-774.72635352,0.0003,15]
[326749791,1715301043459,-31249.99500002,0.0003,15]
[326749792,1715301043481,-736.2341587,0.0003,15]
[326749793,1715301043492,-776.20906213,0.0003,15]
[326749794,1715301043516,-753.5470606,0.0003,15]
[326749795,1715301043527,-446.99602272,0.0003,15]
[326749796,1715301043539,-3521.2366451,0.0003,15]
[326749797,1715301043723,-1302.41989152,0.0003,15]
[326749798,1715301043737,-374.67536865,0.0003,15]
[326749799,1715301043749,-761.67178632,0.0003,15]
[326749800,1715301043761,-1376.18983,0.0003,15]
[326749815,1715301046303,-198.56497144,0.00029999,2]
[326749817,1715301046313,-351.52513853,0.00029999,2]
[326749819,1715301046326,-206.30905459,0.00029999,2]
[326749821,1715301046335,-993.57630895,0.0003,15]
[326749823,1715301046346,-15045.00000015,0.0003,15]
[326749830,1715301046416,-763.10966155,0.0003,15]
[326749831,1715301046434,-493.38205124,0.0003,15]
[326749832,1715301046446,-1099.17400003,0.0003,15]
[326749833,1715301046457,-820.09326676,0.0003,15]
[326749834,1715301046519,-821.73201167,0.0003,15]
[326749835,1715301046535,-759.9696097,0.0003,15]
[326749836,1715301046624,-9145.9247847,0.0003,15]
[326749837,1715301235022,9103.29614088,9e-05,2]
[326749838,1715301311765,7510.54701635,9e-05,2]
[326749839,1715301325488,7501.76248735,9e-05,2]
[326749843,1715301851058,545.22666942,0.00011675,2]
[326749844,1715301903283,154.16,0.0001,2]
[326749845,1715301911556,1334.62389622,0.00011669,2]
[326749846,1715301911725,-150.0,0.00011753,2]
[326749847,1715301911749,-1998.29813568,0.00011768,2]
[326749848,1715301911771,-528.15150967,0.00011769,2]
[326749849,1715301911794,-2183.75134658,0.00011769,2]
[326749850,1715301911818,-521.26427135,0.00011769,2]
[326749851,1715301911844,-150.0,0.00011769,2]
[326749852,1715301911867,-155.0,0.0001177,2]
[326749853,1715301911891,-2325.82841742,0.0001177,2]
[326749854,1715301911914,-155.0,0.0001177,2]
[326749855,1715301911937,-155.0,0.00011771,2]
[326749856,1715301911961,-305.87346187,0.00011771,2]
[326749857,1715301911986,-538.65776021,0.00011771,2]
[326749858,1715301912011,-1246.86092123,0.00011772,2]
[326749859,1715301912036,-1062.60198122,0.00011773,2]
[326749860,1715301912062,-159.85,0.00011979,2]
[326749861,1715301912084,-4248.42,0.00012149,2]
[326749862,1715301912106,-250.0,0.00012425,2]
[326749863,1715301912129,-157.93402431,0.00012499,2]
[326749864,1715301912343,-150.99,0.00012499,2]
[326749865,1715301912368,-287.34015615,0.000125,2]
[326749866,1715301912392,-214.27,0.00012568,2]
[326749867,1715301912415,-782.62056695,0.00012684,2]
[326749868,1715301912438,-176.1250527,0.00012785,2]
[326749869,1715301912462,-5554.2239,0.000129,2]
[326749870,1715301912485,-232.2857,0.000129,2]
[326749871,1715301912510,-10463.9914,0.000129,2]
[326749872,1715301912533,-26343.6457,0.000129,2]
[326749873,1715301912556,-218.22894187,0.00012928,2]
[326749874,1715301912577,-2491.37819361,0.00012928,2]
[326749875,1715301912600,-514.76618918,0.00012928,2]
[326749876,1715301912623,-150.35099918,0.00012928,2]
[326749877,1715301912649,-222.68977215,0.00012928,2]
[326749878,1715301912671,-192.0,0.00012946,2]
[326749879,1715301912695,-155.36852506,0.0001299,2]
[326749880,1715301912721,-155.36852506,0.0001299,2]
[326749881,1715301912749,-153.49,0.0001299,2]
[326749882,1715301912773,-153.49,0.0001299,2]
[326749883,1715301912798,-153.49,0.0001299,2]
[326749884,1715301912824,-153.49,0.0001299,2]
[326749885,1715301912849,-153.49,0.0001299,2]
[326749886,1715301912875,-153.49,0.0001299,2]
[326749887,1715301912899,-317.50955943,0.00012998,2]
[326749888,1715301912921,-365.84,0.00012998,2]
[326749889,1715301912944,-198.8829956,0.00012998,2]
[326749890,1715301912968,-199.4384835,0.00012998,2]
[326749891,1715301913008,-1243.56007584,0.00012999,2]
[326749892,1715301913037,-14001.56483238,0.00013,2]
[326749893,1715301933288,-174.93905832,0.00011768,2]
[326749900,1715302231521,-521.26427135,0.00012899,2]
[326749902,1715302231530,-594.69862949,0.000129,2]
[326749904,1715302231540,-150.35099912,0.00012928,2]
[326749906,1715302231549,-222.68977215,0.00012928,2]
[326749908,1715302231618,-153.5,0.0001299,2]
[326749909,1715302231628,-2181.26962191,0.00012998,2]
[326749910,1715302231638,-155.0,0.00012998,2]
[326749911,1715302231647,-712.45898057,0.00012998,2]
[326749912,1715302231656,-155.0,0.00012998,2]
[326749913,1715302231667,-527.77257723,0.00012998,2]
[326749914,1715302231676,-155.0,0.00012998,2]
[326749915,1715302231686,-316.55552957,0.00012998,2]
[326749916,1715302231696,-306.30357181,0.00012998,2]
[326749917,1715302231705,-533.77884656,0.00012998,2]
[326749918,1715302231714,-214.35720024,0.00012999,2]
[326749919,1715302231725,-91.13369862,0.00012999,2]
[326749920,1715302231735,-1463.29978134,0.00012999,2]
[326749921,1715302231751,-909.73405249,0.00012999,2]
[326749922,1715302231761,-1061.58368713,0.00012999,2]
[326749923,1715302231770,-1893.43034159,0.00012999,2]
[326749924,1715302231780,-106.32215879,0.00013,2]
[326749925,1715302231791,-13443.50325055,0.00013,2]
[326749926,1715302231810,-2502.16053811,0.00013,2]
[326749927,1715302231822,-363.6,0.00013,2]
[326749928,1715302231849,-4386.35969042,0.00013,2]
[326749929,1715302231860,-325.09234905,0.00013,2]
[326749930,1715302231885,-2868.15296148,0.00013,2]
[326749932,1715302231896,-5792.33143784,0.00013,2]
[326749934,1715302231907,-31713.38660243,0.00013,2]
[326749935,1715302231926,-2522.64994428,0.00013,2]
[326749937,1715302231937,-1400.0,0.00013,2]
[326749940,1715302231956,-695.5562158,0.00013,2]
[326749942,1715302231969,-256.4326,0.00013,2]
[326749944,1715302231980,-1030.80826547,0.00013,2]
[326749947,1715302231996,-5269.01689433,0.00013,2]
[326749949,1715302232008,-339.7200004,0.00013,2]
[326749979,1715302237554,-1350.0,0.00013,2]
[326749980,1715302237682,-12522.67096352,0.00013,2]
[326749981,1715302237694,-161990.82825333,0.00013,2]
[326749982,1715302237848,-2557884.76625465,0.00013,2]
[326750039,1715302239976,-321.78,0.00013,2]
[326750046,1715302240032,-21786.0,0.00013,2]
[326750090,1715302242867,-2005.41746831,0.00013,2]
[326750091,1715302242919,-33405.07821211,0.00013,2]
[326750092,1715302242961,-392.30596212,0.00013,2]
[326750116,1715302245556,-1062.35823973,0.00012999,2]
[326750117,1715302245566,-97.67931354,0.00013,2]
[326750119,1715302284919,-5647.8,0.00012899,2]
[326750122,1715303143511,165.32,0.00011574,2]
[326750124,1715303200016,593.17,0.000117,2]
[326750125,1715303233839,272.61333472,0.00011603,2]
[326750126,1715303237964,155.0,0.00011701,2]
[326750128,1715303240167,177.68872852,0.00011701,2]
[326750129,1715303240781,155.0,0.00011701,2]
[326750130,1715303243524,157.93402431,0.00011701,2]
[326750131,1715303243582,155.0,0.00011701,2]
[326750132,1715303244895,405.46355808,0.00011701,2]
[326750133,1715303246566,750.52330383,0.00011701,2]
[326750134,1715303247356,155.0,0.00011701,2]
[326750135,1715303251156,954.84797262,0.00011701,2]
[326750136,1715303256004,155.0,0.00011701,2]
[326750137,1715303258521,1623.45850459,0.00011701,2]
[326750138,1715303259141,155.0,0.00011701,2]
[326750139,1715303262784,155.0,0.00011701,2]
[326750140,1715303264392,157.54570993,0.00011701,2]
[326750141,1715303265838,377.57527955,0.00011701,2]
[326750142,1715303266024,1296.3829768,0.00011701,2]
[326750143,1715303266521,572.90279862,0.00011698,2]
[326750144,1715303269825,4272.16693787,0.00011701,2]
[326750145,1715303270098,2364.25603616,0.00011701,2]
[326750146,1715303270889,343.99922863,0.00011701,2]
[326750147,1715303275014,370.68594693,0.00011701,2]
[326750148,1715303275847,326.36335566,0.00011701,2]
[326750149,1715303276016,167.65434555,0.00011701,2]